bitfinex/quotes_BTCUSD_20260221
["timestamp","ask_amount","ask_price","bid_price","bid_amount"]
[1771713762313,0.07378238,68200.0,68192.0,0.07332137]
[1771713762622,0.07331579,68199.0,68192.0,0.07332137]
[1771713763313,0.0232623,68200.0,68190.0,0.00016]
[1771713763536,0.0232623,68200.0,68190.0,0.07348362]
[1771713763537,0.07331724,68197.0,68190.0,0.07348362]
[1771713763883,0.07331724,68197.0,68190.0,0.05534544]
[1771713764089,0.07331724,68197.0,68194.0,0.0002]
[1771713770782,0.07331675,68198.0,68194.0,0.0002]
[1771713772060,0.07331586,68199.0,68194.0,0.0002]
[1771713772386,0.07331614,68198.0,68194.0,0.0002]
[1771713773148,0.0733172,68197.0,68194.0,0.0002]
[1771713774098,0.02279385,68199.0,68187.0,0.0003968]
[1771713774308,0.02279385,68198.0,68187.0,0.0003968]
[1771713774509,0.073317,68197.0,68187.0,0.0003968]
[1771713774663,0.07332228,68193.0,68187.0,0.0003968]
[1771713774869,0.07332274,68192.0,68187.0,0.0003968]
[1771713775080,0.07332218,68193.0,68187.0,0.0003968]
[1771713777287,0.07332248,68192.0,68187.0,0.0003968]
[1771713777863,0.02279385,68199.0,68187.0,0.0003968]
[1771713778064,0.07332474,68190.0,68187.0,0.0003968]
[1771713778571,0.07332474,68190.0,68181.0,0.0002]
[1771713778572,0.0734856,68190.0,68160.0,0.29371046]
[1771713778756,0.0734856,68190.0,68140.0,0.61718459]
[1771713778757,0.07335259,68164.0,68156.0,0.06832769]
[1771713778905,0.07335281,68164.0,68157.0,0.29387047]
[1771713779099,0.07335512,68162.0,68157.0,0.29387047]
[1771713779326,0.07335606,68161.0,68157.0,0.29387047]
[1771713779529,0.0733547,68162.0,68157.0,0.29387047]
[1771713779711,0.07335503,68162.0,68157.0,0.29387047]
[1771713779926,0.07335481,68162.0,68157.0,0.29425958]
[1771713780129,0.07335481,68162.0,68157.0,0.28925958]
[1771713780532,0.07335481,68162.0,68157.0,0.00038911]
[1771713780951,0.02279385,68161.0,68154.0,0.07336262]
[1771713781245,0.02318277,68161.0,68154.0,0.36223309]
[1771713782027,0.02318277,68161.0,68152.0,0.07336532]
[1771713782227,0.02279385,68160.0,68150.0,0.07352739]
[1771713782523,0.02279385,68158.0,68150.0,0.07352739]
[1771713783006,0.07335788,68159.0,68150.0,0.07352739]
[1771713783139,0.07335896,68158.0,68151.0,0.06840551]
[1771713783466,0.07335788,68159.0,68151.0,0.06840551]
[1771713783467,0.07336023,68157.0,68151.0,0.06840551]
[1771713784472,0.07336023,68157.0,68151.0,0.06087467]
[1771713784870,0.02279385,68159.0,68141.0,0.07357313]
[1771713785112,0.00016,68160.0,68141.0,0.07357313]
[1771713785113,0.00016,68160.0,68144.0,0.06689935]
[1771713785393,0.02279385,68159.0,68144.0,0.06689935]
[1771713785603,0.02279385,68156.0,68144.0,0.06689935]
[1771713785824,0.00016,68160.0,68120.0,0.0003486]
[1771713785825,0.00016,68150.0,68120.0,0.0003486]
[1771713785995,0.00015998,68100.0,68057.0,0.1545]
[1771713786215,0.00015998,68100.0,68031.0,0.32525747]
[1771713786216,0.08272716,68049.0,68034.0,0.03933316]
[1771713786417,0.0344399,68058.0,68015.0,9.65e-05]
[1771713786418,0.15160272,68048.0,68023.0,0.02426198]
[1771713786619,0.17612,68052.0,68015.0,9.65e-05]
[1771713786823,0.03234816,68046.0,68015.0,9.65e-05]
[1771713787022,0.0579928,68034.0,68010.0,0.07351772]
[1771713787207,0.01345784,68033.0,68023.0,0.0735041]
[1771713787413,0.01345784,68032.0,68012.0,0.02426198]
[1771713787613,0.00038772,68034.0,68006.0,0.17616]
[1771713787614,0.02279385,68030.0,68013.0,0.06037696]
[1771713787814,0.02279385,68030.0,68008.0,0.02426198]
[1771713787815,0.07803601,68026.0,68008.0,0.07351982]
[1771713788045,0.0233271,68022.0,68001.0,0.29410899]
[1771713788237,0.47052004,68034.0,68020.0,0.00016]
[1771713788238,0.01329784,68021.0,68020.0,0.00016]
[1771713788443,0.0233271,68020.0,68010.0,0.00016]
[1771713789014,0.0233271,68020.0,68002.0,0.14819545]
[1771713789015,0.07351062,68018.0,68002.0,0.07466905]
[1771713789330,0.07351062,68018.0,67999.0,0.07353002]
[1771713789331,0.07803601,68015.0,67999.0,0.07353002]
[1771713789509,0.0233271,68014.0,68001.0,0.07466905]
[1771713789654,0.1762,68017.0,68007.0,0.07466905]
[1771713789854,0.1762,68017.0,68014.0,0.07351407]
[1771713790079,0.1762,68017.0,68010.0,0.07466905]
[1771713790354,0.1762,68017.0,67999.0,0.07466905]
[1771713790574,0.1762,68017.0,68001.0,0.07466905]
[1771713790774,0.0233271,68016.0,68001.0,0.07466905]
[1771713791007,0.00038772,68034.0,68010.0,0.00016]
[1771713791212,0.00038772,68034.0,68011.0,0.29406575]
[1771713791506,0.17628,68035.0,68032.0,0.0734938]
[1771713791848,0.00016,68040.0,68039.0,0.15161782]
[1771713791849,1e-08,68040.0,68039.0,0.15161782]
[1771713792049,0.07652831,68065.0,68032.0,0.00011708]
[1771713792050,4e-05,68065.0,68032.0,0.00011708]
[1771713792226,4e-05,68065.0,68050.0,0.07813056]
[1771713792450,4e-05,68065.0,68051.0,0.0734743]
[1771713792639,4e-05,68065.0,68050.0,0.07047972]
[1771713792860,4e-05,68065.0,68058.0,0.07346601]
[1771713793057,4e-05,68065.0,68058.0,0.15159657]
[1771713793257,0.0015,68069.0,68052.0,0.02494469]
[1771713793458,0.17628,68072.0,68071.0,0.07345271]
[1771713793635,0.07648831,68087.0,68074.0,0.07344842]
[1771713793886,0.19914007,68088.0,68074.0,0.07344842]
[1771713794066,0.19914007,68088.0,68074.0,0.07356627]
[1771713794414,0.19914007,68088.0,68078.0,0.0734444]
[1771713794688,0.17632,68088.0,68078.0,0.0734444]
[1771713794845,1e-08,68080.0,68078.0,0.0734444]
[1771713795333,1e-08,68080.0,68078.0,0.15157496]
[1771713795605,1e-08,68080.0,68079.0,0.07813056]
[1771713796823,0.001,68089.0,68078.0,0.07813056]
[1771713796968,0.001,68089.0,68087.0,0.07343462]
[1771713797976,0.02282007,68111.0,68086.0,0.02494469]
[1771713798204,0.02282007,68111.0,68080.0,0.00016]
[1771713798205,0.02282007,68111.0,68101.0,0.07341937]
[1771713798410,0.02282007,68111.0,68102.0,0.0734191]
[1771713798937,0.02282007,68111.0,68095.0,0.07813056]
[1771713799368,0.17636,68119.0,68090.0,0.02510469]
[1771713799369,0.0008567,68106.0,68105.0,0.07341604]
[1771713799588,0.0008567,68106.0,68104.0,0.03903179]
[1771713800061,0.07340407,68117.0,68105.0,0.07341588]
[1771713800263,0.07340407,68117.0,68105.0,0.07353296]
[1771713800477,0.07340226,68118.0,68106.0,0.07341471]
[1771713800810,0.07340226,68118.0,68100.0,0.37181598]
[1771713801013,0.00027638,68110.0,68100.0,0.37181598]
[1771713801215,0.00027638,68110.0,68106.0,0.0734146]
[1771713801448,0.00027638,68110.0,68107.0,0.07341365]
[1771713801920,0.0004,68113.0,68100.0,0.37181598]
[1771713801921,0.0004,68113.0,68106.0,0.07813056]
[1771713802245,0.0004,68113.0,68111.0,0.07340914]
[1771713802563,0.17636,68119.0,68110.0,0.07340992]
[1771713802769,0.17636,68119.0,68115.0,0.07340427]
[1771713803398,0.17636,68119.0,68114.0,0.07340628]
[1771713803832,0.17636,68119.0,68099.0,0.17636]
[1771713803833,0.00016,68130.0,68113.0,0.07813056]
[1771713804035,0.07339018,68129.0,68113.0,0.07813056]
[1771713804263,0.0001825,68141.0,68110.0,0.00016]
[1771713804419,0.00023675,68132.0,68131.0,0.07004842]
[1771713804826,0.00023675,68132.0,68120.0,0.00016]
[1771713804827,0.0001825,68141.0,68125.0,0.02494469]
[1771713805046,0.0001825,68141.0,68135.0,0.07338372]
[1771713805466,0.0001825,68141.0,68134.0,0.07338441]
[1771713805975,0.0001825,68141.0,68138.0,0.07338025]
[1771713806149,0.0001825,68141.0,68137.0,0.07338079]
[1771713806732,0.0001825,68141.0,68140.0,0.07337833]
[1771713807332,0.00016,68150.0,68140.0,0.07337833]
[1771713807650,0.01333353,68149.0,68140.0,0.07337833]
[1771713807968,0.01333353,68148.0,68139.0,0.07337732]
[1771713808275,0.0004,68140.0,68139.0,0.07337732]
[1771713808470,0.00016,68150.0,68141.0,0.07337651]
[1771713808698,0.01334676,68149.0,68139.0,0.07337732]
[1771713808913,0.09634771,68150.0,68131.0,0.07813056]
[1771713808914,0.01334676,68148.0,68131.0,0.07813056]
[1771713809090,0.01334676,68147.0,68137.0,0.07338076]
[1771713809322,0.09634771,68150.0,68120.0,0.00016]
[1771713809323,0.07339558,68124.0,68120.0,0.00016]
[1771713809521,0.02282007,68126.0,68109.0,0.0734108]
[1771713809649,0.07340015,68120.0,68110.0,0.07356973]
[1771713809849,0.07648831,68147.0,68142.0,0.07337618]
[1771713810057,0.02282007,68142.0,68130.0,0.00016]
[1771713810259,0.07338049,68138.0,68120.0,0.00016]
[1771713810509,0.07338364,68136.0,68124.0,0.07339479]
[1771713810720,0.07338372,68135.0,68124.0,0.07339493]
[1771713811024,0.07338482,68134.0,68124.0,0.07339493]
[1771713811169,0.07338619,68133.0,68124.0,0.07339493]
[1771713811565,0.07338364,68136.0,68122.0,0.07339744]
[1771713811782,0.00016,68140.0,68120.0,0.00016]
[1771713811783,0.00016,68140.0,68123.0,0.07813056]
[1771713811983,0.00016,68140.0,68132.0,0.07338692]
[1771713812289,0.08674966,68139.0,68130.0,0.0733891]
[1771713812618,0.07337955,68139.0,68130.0,0.0733891]
[1771713813193,0.00016,68140.0,68130.0,0.05383103]
[1771713813395,0.0867563,68139.0,68130.0,0.05383103]
[1771713813595,0.0733795,68139.0,68129.0,0.07338817]
[1771713814005,0.0733795,68139.0,68131.0,0.07338797]
[1771713814202,0.07353851,68140.0,68131.0,0.07338797]
[1771713814569,0.01338349,68139.0,68135.0,0.07338368]
[1771713814842,0.00016,68140.0,68135.0,0.07813056]
[1771713815068,0.07337314,68145.0,68137.0,0.07338096]
[1771713815069,0.07337306,68145.0,68137.0,0.07338096]
[1771713815199,0.49258535,68156.0,68141.0,0.07337626]
[1771713815200,0.07648831,68155.0,68141.0,0.07337626]
[1771713815411,0.19914007,68156.0,68141.0,0.07337626]
[1771713815810,0.0735277,68150.0,68141.0,0.07337626]
[1771713816030,0.0735277,68150.0,68142.0,0.07337606]
[1771713816205,0.07336875,68149.0,68141.0,0.07337715]
[1771713816424,0.00111673,68147.0,68141.0,0.07337715]
[1771713816631,0.0004,68146.0,68143.0,0.07337493]
[1771713817354,0.00111673,68147.0,68139.0,0.07337839]
[1771713817669,0.00011673,68147.0,68141.0,0.07337632]
[1771713817867,0.00011673,68147.0,68142.0,0.073376]
[1771713818103,0.00011673,68147.0,68143.0,0.07337502]
[1771713818278,0.00011673,68147.0,68144.0,0.07337403]
[1771713819115,0.00011673,68147.0,68144.0,0.07322984]
[1771713819285,0.00011673,68147.0,68145.0,0.07337257]
[1771713820018,0.00011673,68147.0,68146.0,0.07337187]
[1771713820170,0.00011673,68147.0,68143.0,0.07337462]
[1771713820171,0.00011673,68147.0,68145.0,0.07337285]
[1771713820355,0.00016,68150.0,68145.0,0.07337285]
[1771713820557,0.0004,68154.0,68143.0,0.10431714]
[1771713820759,0.07376425,68154.0,68146.0,0.07337115]
[1771713820961,0.07376425,68154.0,68145.0,0.10431714]
[1771713821193,0.07376425,68154.0,68145.0,0.08999862]
[1771713821760,0.07336434,68153.0,68145.0,0.16337148]
[1771713821958,0.0004,68154.0,68145.0,0.08999862]
[1771713822295,0.28088583,68179.0,68140.0,0.00016]
[1771713822296,0.2934115,68164.0,68151.0,0.05974513]
[1771713822498,0.14412313,68163.0,68152.0,0.07336454]
[1771713822742,0.07351783,68160.0,68152.0,0.07336454]
[1771713823127,0.09607083,68157.0,68149.0,0.07336762]
[1771713823302,0.09618752,68157.0,68149.0,0.07336762]
[1771713823713,0.07347701,68157.0,68149.0,0.07336762]
[1771713823981,0.07347701,68157.0,68150.0,0.07336741]
[1771713824788,0.07336116,68156.0,68148.0,0.09623321]
[1771713824968,0.0004,68154.0,68140.0,0.00016]
[1771713825176,0.0004,68154.0,68137.0,0.03068785]
[1771713825177,0.07337506,68144.0,68137.0,0.03068785]
[1771713825778,0.07337527,68143.0,68136.0,0.17624]
[1771713825956,0.07337506,68144.0,68136.0,0.27248698]
[1771713826319,0.29348152,68148.0,68137.0,0.02286452]
[1771713826440,0.07337472,68144.0,68137.0,0.02286452]
[1771713826644,0.29348152,68148.0,68137.0,0.02286452]
[1771713826845,0.07337256,68146.0,68137.0,0.02286452]
[1771713827069,0.07337491,68144.0,68137.0,0.02286452]
[1771713827357,0.01357033,68143.0,68137.0,0.02286452]
[1771713827583,0.01357033,68142.0,68137.0,0.02286452]
[1771713827779,0.01357033,68141.0,68136.0,0.10296123]
[1771713828056,0.01357033,68140.0,68125.0,0.07339398]
[1771713828280,0.07338803,68131.0,68122.0,0.19910452]
[1771713828596,0.08695836,68131.0,68122.0,0.19910452]
[1771713828942,0.07338696,68132.0,68123.0,0.0733965]
[1771713829161,0.07338803,68131.0,68123.0,0.0733965]
[1771713829804,0.07338927,68130.0,68123.0,0.0733965]
[1771713830227,0.07338809,68131.0,68122.0,0.2725001]
[1771713830424,0.07338809,68131.0,68124.0,0.07339535]
[1771713830580,0.00016,68140.0,68110.0,0.00016]
[1771713830789,0.02271051,68128.0,68110.0,0.00027671]
[1771713830988,0.07340442,68116.0,68110.0,0.00027671]
[1771713831215,0.07340536,68115.0,68110.0,0.00027671]
[1771713831432,0.07340527,68115.0,68110.0,0.00027671]
[1771713831819,0.2936188,68116.0,68110.0,0.00027671]
[1771713832020,0.07341093,68110.0,68103.0,0.07341816]
[1771713832222,0.07340976,68111.0,68103.0,0.07353454]
[1771713832422,0.07340976,68111.0,68103.0,0.07353358]
[1771713832592,0.07341173,68110.0,68103.0,0.00011638]
[1771713832794,0.0734095,68112.0,68104.0,0.07341706]
[1771713832994,0.21841297,68112.0,68104.0,0.07341706]
[1771713833198,0.07340963,68111.0,68103.0,0.07353433]
[1771713833616,0.00016,68110.0,68104.0,0.07341605]
[1771713833957,0.0002766,68110.0,68105.0,0.07341571]
[1771713834148,0.0002766,68110.0,68103.0,0.07341731]
[1771713834357,0.0002766,68110.0,68100.0,0.31654817]
[1771713834358,0.07368735,68110.0,68102.0,0.07341916]
[1771713834584,0.07368735,68110.0,68098.0,0.29369214]
[1771713834585,0.02271051,68109.0,68083.0,0.07343965]
[1771713834744,0.02271051,68098.0,68083.0,0.07343965]
[1771713834950,0.07343076,68092.0,68082.0,0.07343876]
[1771713835135,0.07343139,68091.0,68083.0,0.07343965]
[1771713835337,0.07343076,68092.0,68083.0,0.07343965]
[1771713835569,0.07343132,68091.0,68083.0,0.07343965]
[1771713835760,0.09545113,68095.0,68080.0,0.00016]
[1771713835963,0.07343473,68088.0,68080.0,0.00016]
[1771713836119,0.07343834,68085.0,68080.0,0.00016]
[1771713836323,0.07343538,68088.0,68080.0,0.00016]
[1771713836523,0.07343557,68087.0,68080.0,0.07360288]
[1771713836744,0.29372131,68092.0,68080.0,0.00016]
[1771713836947,0.07344069,68083.0,68080.0,0.00016]
[1771713837148,0.07344095,68082.0,68080.0,0.00016]
[1771713837348,0.00011654,68083.0,68071.0,0.0734524]
[1771713837646,0.07344511,68079.0,68071.0,0.0734524]
[1771713839261,0.09545113,68081.0,68070.0,0.00016]
[1771713839637,0.07344687,68077.0,68070.0,0.00016]
[1771713839767,0.07344822,68076.0,68070.0,0.00016]
[1771713840378,0.07344847,68075.0,68070.0,0.00016]
[1771713840726,0.07344748,68076.0,68073.0,0.0002]
[1771713840928,0.31664521,68080.0,68066.0,0.0002]
[1771713841280,0.07344894,68075.0,68067.0,0.07345687]
[1771713841471,0.07344731,68077.0,68068.0,0.07345539]
[1771713841671,0.31664521,68080.0,68067.0,0.07345687]
[1771713841672,0.07344955,68074.0,68067.0,0.07345687]
[1771713842014,0.31664521,68080.0,68057.0,0.07346677]
[1771713842015,0.00016,68070.0,68057.0,0.07346677]
[1771713842182,0.07345632,68068.0,68059.0,0.0734653]
[1771713842694,0.07345732,68067.0,68059.0,0.0734653]
[1771713843100,0.07345619,68068.0,68060.0,0.07346406]
[1771713847210,0.08497218,68100.0,68060.0,0.07346406]
[1771713847211,0.02271051,68098.0,68070.0,0.00016]
[1771713847413,1e-08,68100.0,68080.0,0.00016]
[1771713847617,0.00016,68110.0,68106.0,0.07341474]
[1771713847812,0.11816164,68118.0,68090.0,0.00016]
[1771713847813,0.19156403,68118.0,68111.0,0.07340958]
[1771713848035,0.19156403,68118.0,68100.0,0.00016]
[1771713848036,0.07340357,68117.0,68109.0,0.0734109]
[1771713848380,0.0004,68119.0,68103.0,0.10216411]
[1771713848572,0.0004,68119.0,68111.0,0.07340926]
[1771713848752,0.00051679,68119.0,68109.0,0.07341088]
[1771713848928,0.07340203,68118.0,68109.0,0.07341088]
[1771713849149,0.00051679,68119.0,68111.0,0.07340958]
[1771713849350,0.07340617,68115.0,68106.0,0.07341404]
[1771713849560,0.0734075,68113.0,68104.0,0.07341712]
[1771713849760,0.29361054,68118.0,68106.0,0.07341463]
[1771713850205,0.07340716,68114.0,68106.0,0.07341463]
[1771713850769,0.07340745,68113.0,68104.0,0.07341712]
[1771713851122,0.07340745,68113.0,68106.0,0.07341472]
[1771713852872,0.07340907,68112.0,68104.0,0.07341712]
[1771713853084,0.07340964,68111.0,68104.0,0.07341712]
[1771713853255,0.00051679,68119.0,68100.0,0.00016]
[1771713853480,0.07341303,68108.0,68100.0,0.07358143]
[1771713854182,0.10690446,68113.0,68102.0,0.07341834]
[1771713854394,0.10690446,68113.0,68101.0,0.07342017]
[1771713854395,0.07341235,68109.0,68101.0,0.07342017]
[1771713854599,0.07341324,68108.0,68100.0,0.07358119]
[1771713856144,0.07341411,68107.0,68100.0,0.07358119]
[1771713856344,0.07341411,68107.0,68100.0,0.00016]
[1771713856902,0.07341292,68108.0,68100.0,0.00016]
[1771713857113,0.07341292,68108.0,68100.0,0.07358143]
[1771713857310,0.07341442,68107.0,68100.0,0.07358143]
[1771713857529,0.07341946,68102.0,68095.0,0.0734266]
[1771713857738,0.0004,68113.0,68091.0,0.0002]
[1771713857739,0.07343006,68092.0,68091.0,0.0002]
[1771713857945,0.07343006,68092.0,68084.0,0.0002]
[1771713857946,0.07343229,68090.0,68084.0,0.0002]
[1771713858147,0.0734344,68088.0,68084.0,0.0002]
[1771713858409,0.07343576,68087.0,68084.0,0.0002]
[1771713858548,0.07343694,68086.0,68084.0,0.0002]
[1771713858945,0.07343555,68087.0,68084.0,0.0005882]
[1771713860647,0.07343465,68088.0,68084.0,0.0005882]
[1771713860858,0.07343761,68085.0,68080.0,0.00016]
[1771713861321,0.07343869,68084.0,68080.0,0.00016]
[1771713861547,0.70306306,68112.0,68080.0,1e-08]
[1771713861548,0.09611619,68081.0,68080.0,1e-08]
[1771713862287,0.07345035,68074.0,68070.0,0.00016]
[1771713862517,0.00016,68090.0,68070.0,0.00027654]
[1771713862727,0.07344247,68081.0,68073.0,0.07345023]
[1771713862918,0.31641178,68089.0,68073.0,0.0968872]
[1771713863109,0.07344234,68081.0,68073.0,0.0968872]
[1771713863758,0.07344234,68081.0,68073.0,0.0970954]
[1771713865013,0.00016,68090.0,68073.0,0.02364517]
[1771713865204,0.00016,68090.0,68080.0,0.07344254]
[1771713865350,0.07343714,68086.0,68078.0,0.07344434]
[1771713865549,0.00016,68090.0,68073.0,0.0004082]
[1771713865550,0.29389238,68090.0,68076.0,0.0734467]
[1771713865771,0.29389238,68090.0,68074.0,0.29400362]
[1771713865772,0.07343743,68086.0,68079.0,0.07344384]
[1771713866975,0.0734356,68087.0,68079.0,0.07344384]
[1771713867802,0.0734356,68087.0,68080.0,0.07344251]
[1771713868060,0.07343463,68088.0,68079.0,0.07344384]
[1771713868244,0.07343463,68088.0,68080.0,0.073443]
[1771713868442,0.07343583,68087.0,68080.0,0.073443]
[1771713868849,0.07343583,68087.0,68078.0,0.07344454]
[1771713869030,0.07343728,68086.0,68078.0,0.07344454]
[1771713870283,0.07343728,68086.0,68079.0,0.0734436]
[1771713870506,0.07343766,68085.0,68078.0,0.07344488]
[1771713870704,0.29211182,68107.0,68074.0,0.0002082]
[1771713870901,0.18758567,68106.0,68092.0,0.02343697]
[1771713871043,0.11416985,68106.0,68098.0,0.07342308]
[1771713871248,0.11416985,68106.0,68099.0,0.07342251]
[1771713871670,0.11416985,68106.0,68100.0,0.073421]
[1771713871873,0.17632,68107.0,68100.0,0.073421]
[1771713872076,0.1767094,68107.0,68101.0,0.07342004]
[1771713872470,0.1767094,68107.0,68097.0,0.02343697]
[1771713872471,0.1767094,68107.0,68102.0,0.07341928]
[1771713872671,0.1767094,68107.0,68100.0,0.07342037]
[1771713872950,0.16665742,68107.0,68102.0,0.0734185]
[1771713873206,0.0003894,68107.0,68105.0,0.09685248]
[1771713873500,0.0003894,68107.0,68105.0,0.02343697]
[1771713873709,0.0003894,68107.0,68103.0,0.09685457]
[1771713874075,0.0003894,68107.0,68103.0,0.02343697]
[1771713874362,0.0003894,68107.0,68103.0,0.09685517]
[1771713874906,0.0003894,68107.0,68106.0,0.07341497]
[1771713875948,0.0004,68112.0,68104.0,0.02343697]
[1771713876110,0.07392544,68112.0,68105.0,0.07341511]
[1771713876508,0.00051677,68112.0,68106.0,0.07341492]
[1771713877712,0.00051677,68112.0,68104.0,0.02343697]
[1771713877919,0.00016,68120.0,68117.0,0.07340273]
[1771713877920,1e-08,68120.0,68117.0,0.07340273]
[1771713878270,0.11678349,68126.0,68118.0,0.07340138]
[1771713878472,0.19017694,68126.0,68118.0,0.07379078]
[1771713878832,0.11678349,68126.0,68118.0,0.0003894]
[1771713879034,0.07339456,68125.0,68118.0,0.07379101]
[1771713879767,0.11678349,68126.0,68118.0,0.0003894]
[1771713879951,0.11678349,68126.0,68118.0,0.07379055]
[1771713879952,0.19017715,68126.0,68118.0,0.07379055]
[1771713880586,0.07339468,68125.0,68118.0,0.07379055]
[1771713880772,0.0733958,68124.0,68118.0,0.0003894]
[1771713880937,0.07339514,68125.0,68118.0,0.0003894]
[1771713881138,0.02328495,68114.0,68100.0,0.02474891]
[1771713881360,0.1163636,68109.0,68100.0,7e-05]
[1771713881712,0.1163636,68109.0,68103.0,0.0734173]
[1771713881837,0.1163636,68112.0,68105.0,0.07341516]
[1771713882034,0.07379767,68114.0,68100.0,7e-05]
[1771713882035,0.13964855,68109.0,68100.0,7e-05]
[1771713882480,0.1163636,68108.0,68102.0,0.07341907]
[1771713882635,0.12149837,68125.0,68118.0,0.07340141]
[1771713882835,0.02328495,68129.0,68114.0,0.02458891]
[1771713883039,0.07339234,68127.0,68119.0,0.07340086]
[1771713883236,0.07370427,68126.0,68116.0,0.07340419]
[1771713883460,0.07339972,68121.0,68110.0,0.02474891]
[1771713883658,0.07339595,68124.0,68114.0,0.07340538]
[1771713883871,0.0004,68119.0,68113.0,0.07340711]
[1771713884227,0.0004,68119.0,68114.0,0.07340558]
[1771713884437,0.0004,68119.0,68115.0,0.07340504]
[1771713884593,0.0004,68119.0,68116.0,0.07340419]
[1771713884796,0.0004,68119.0,68113.0,0.07340656]
[1771713884995,0.0004,68119.0,68115.0,0.07340513]
[1771713886223,0.0004,68119.0,68116.0,0.07340396]
[1771713886550,0.0004,68119.0,68117.0,0.07340284]
[1771713888002,0.0004,68119.0,68118.0,0.07340203]
[1771713888169,0.0004,68119.0,68117.0,0.07340284]
[1771713889298,0.00013,69423.0,68131.0,0.02458891]
[1771713889299,0.12159238,68145.0,68131.0,0.02458891]
[1771713889514,0.12159238,68145.0,68133.0,0.23859035]
[1771713889709,0.12159238,68145.0,68134.0,0.07338415]
[1771713890096,0.12159238,68145.0,68137.0,0.07338112]
[1771713890477,0.12159238,68145.0,68138.0,0.07338044]
[1771713890674,0.12159238,68145.0,68137.0,0.07338112]
[1771713890873,0.12199238,68145.0,68133.0,0.02458891]
[1771713891102,0.12199238,68145.0,68140.0,0.0733775]
[1771713891273,0.0004,68145.0,68140.0,0.0733775]
[1771713891887,0.0004,68145.0,68141.0,0.07337726]
[1771713892288,0.0004,68145.0,68140.0,0.07337832]
[1771713893137,0.0004,68145.0,68142.0,0.07337568]
[1771713893312,0.0004,68145.0,68143.0,0.073375]
[1771713893513,0.0004,68145.0,68144.0,0.07337403]
[1771713893985,0.0004,68145.0,68144.0,0.0729413]
[1771713895218,0.0004,68145.0,68144.0,0.09753021]
[1771713895748,0.00016,68150.0,68146.0,0.07337187]
[1771713896445,0.0004,68154.0,68140.0,0.00016]
[1771713896597,0.0004,68154.0,68149.0,0.07336794]
[1771713896802,0.0004,68154.0,68144.0,0.29349306]
[1771713897005,0.0004,68154.0,68150.0,0.07336754]
[1771713897411,0.12172772,68153.0,68150.0,0.07336754]
[1771713897764,0.12212772,68154.0,68150.0,0.07336754]
[1771713898174,0.12212772,68154.0,68151.0,0.07336644]
[1771713899623,0.00016,68150.0,68130.0,0.00016]
[1771713899822,0.07338257,68137.0,68130.0,0.00016]
[1771713900050,0.09666482,68139.0,68130.0,0.07354904]
[1771713900265,0.02328495,68139.0,68132.0,0.07338693]
[1771713900466,0.02328495,68138.0,68130.0,0.07354871]
[1771713900633,0.09666572,68138.0,68130.0,0.07354871]
[1771713900971,0.02328495,68138.0,68130.0,0.07354871]
[1771713901182,0.29375022,68150.0,68130.0,0.00016]
[1771713901183,0.21156856,68134.0,68130.0,0.00016]
[1771713901408,0.13818297,68134.0,68130.0,0.00016]
[1771713901520,0.11489802,68134.0,68127.0,0.07339153]
[1771713901727,0.11489802,68132.0,68120.0,0.00016]
[1771713901932,0.07339284,68127.0,68120.0,0.07355969]
[1771713902129,0.21157696,68126.0,68120.0,0.00016]
[1771713903032,0.07338833,68131.0,68120.0,0.00016]
[1771713903236,0.00016,68140.0,68130.0,0.0733891]
[1771713903432,0.00016,68140.0,68125.0,0.02458891]
[1771713903784,0.07336984,68148.0,68140.0,0.07337739]
[1771713904016,0.01356611,68147.0,68141.0,0.0733765]
[1771713904199,0.07336895,68149.0,68141.0,0.0733765]
[1771713904411,0.01356996,68148.0,68141.0,0.0733765]
[1771713904623,0.07336975,68148.0,68141.0,0.07337702]
[1771713905045,0.07336975,68148.0,68140.0,0.07337739]
[1771713905046,0.21155277,68148.0,68140.0,0.07337739]
[1771713905367,0.02328495,68147.0,68144.0,0.07337344]
[1771713906195,0.02328495,68147.0,68142.0,0.07337554]
[1771713906398,0.02328495,68146.0,68142.0,0.07337554]
[1771713906811,0.13818297,68146.0,68133.0,0.0002]
[1771713907019,0.02328495,68145.0,68134.0,0.0733848]
[1771713907219,0.02328495,68145.0,68138.0,0.07337945]
[1771713907447,0.02328495,68145.0,68139.0,0.07337935]
[1771713907733,0.02328495,68145.0,68140.0,0.0733776]
[1771713907915,0.02328495,68145.0,68141.0,0.07337641]
[1771713908092,0.02328495,68145.0,68142.0,0.07337617]
[1771713908292,0.0004,68148.0,68142.0,0.07337617]
[1771713908497,0.0004,68148.0,68143.0,0.0733748]
[1771713908713,0.02301463,68147.0,68141.0,0.07337641]
[1771713909316,0.02301463,68147.0,68140.0,0.07337769]
[1771713909535,0.02301463,68147.0,68141.0,0.07337624]
[1771713909899,0.0004,68148.0,68141.0,0.07337624]
[1771713910119,0.0004,68148.0,68142.0,0.07337613]
[1771713910333,0.0004,68148.0,68144.0,0.07337396]
[1771713910944,0.0004,68148.0,68135.0,0.02488578]
[1771713910945,0.0004,68148.0,68143.0,0.07337477]
[1771713912252,0.0004,68148.0,68135.0,0.02488578]
[1771713912446,0.0004,68148.0,68145.0,0.07337222]
[1771713912606,0.0004,68148.0,68145.0,0.07337198]
[1771713912808,0.0004,68148.0,68136.0,0.02331328]
[1771713912995,0.0004,68148.0,68147.0,0.0733708]
[1771713913656,0.0004,68148.0,68147.0,0.06737649]
[1771713916322,0.0004,68148.0,68146.0,0.07337187]
[1771713916743,1e-08,68148.0,68147.0,0.0733708]
[1771713917803,1e-08,68148.0,68140.0,0.29350949]
[1771713918079,1e-08,68148.0,68091.0,0.08354653]
[1771713918080,1e-08,68148.0,68135.0,0.13644974]
[1771713918313,1e-08,68148.0,68145.0,0.07337197]
[1771713918527,1e-08,68148.0,68146.0,0.07337182]
[1771713919642,0.00031,68154.0,68143.0,0.13644974]
[1771713919862,0.01362008,68153.0,68143.0,0.42994586]
[1771713920089,0.01362008,68152.0,68151.0,0.07336549]
[1771713920313,0.01362008,68152.0,68144.0,0.07337403]
[1771713920461,0.02453546,68153.0,68151.0,0.07336649]
[1771713920654,0.02453546,68153.0,68143.0,0.13644974]
[1771713920655,0.01362004,68152.0,68150.0,0.07336677]
[1771713921045,0.01362004,68151.0,68150.0,0.07336757]
[1771713921271,0.01362004,68151.0,68147.0,0.0733704]
[1771713921502,0.02453546,68153.0,68149.0,0.07336841]
[1771713921768,0.01361969,68152.0,68150.0,0.07336745]
[1771713921918,0.01361969,68151.0,68143.0,0.13644974]
[1771713922128,0.02453546,68153.0,68143.0,0.13644974]
[1771713922129,0.02453546,68153.0,68150.0,0.07336754]
[1771713922341,0.01361944,68152.0,68149.0,0.07336856]
[1771713922543,0.01361944,68152.0,68148.0,0.073369]
[1771713922544,0.07337286,68146.0,68140.0,0.00016]
[1771713923152,0.07337286,68146.0,68140.0,0.00036]
[1771713923364,0.07375076,68146.0,68140.0,0.00036]